[Event "Susha Chess Blitz Women 2022"]
[Site "Shusha"]
[Date "2022.09.24"]
[Round "18"]
[White "Beydullayeva, Govhar"]
[Black "Zawadzka, Jolanta"]
[Result "1-0"]
[ECO "D52"]
[WhiteElo "2346"]
[BlackElo "2401"]
[Annotator "TA"]
[PlyCount "73"]
[EventDate "2022.09.24"]
[EventType "tourn"]
[EventCountry "AZE"]
[SourceTitle "playchess.com"]
[Source "ChessBase"]
[SourceQuality "1"]
[TimeControl "180+2"]

{[%evp 17,73,20,16,-69,-6,-14,0,14,63,58,68,38,41,45,50,45,55,28,26,16,17,0,71,77,83,-23,-18,-162,-157,-150,-154,-408,-89,-92,0,0,0,0,0,0,1606,1568,1409,1410,29981,29982,29982,29983,29981,29982,29990,29991,29991,29992,29992,29991,29991,29992]} 1. d4 {[%emt 0:00:01]} d5 {[%emt 0:00:01]} 2. c4 {[%emt 0:00:01]} e6 {[%emt 0:00:01]} 3. Nf3 {[%emt 0:00:01]} Nf6 {[%emt 0:00:01]} 4. Nc3 {[%emt 0:00:01]} c6 {[%emt 0:00:06]} 5. Bg5 {[%emt 0:00:03]} Nbd7 {[%emt 0:00:01]} 6. e3 {[%emt 0:00:01]} h6 {[%emt 0:00:06]} 7. Bh4 {[%emt 0:00:02]} Be7 {[%emt 0:00:02]} 8. Bd3 {[%emt 0:00:08]} b6 {[%emt 0:00:05] 8...dxc4 is becoming the main line.} 9. O-O {[%emt 0:00:06]} O-O {[%emt 0:00:02]} 10. e4 {[%emt 0:00:16] D60: Queen's Gambit Declined: Classical: Unusual White 7th moves.} (10. Qe2 $1 $11) 10... dxe4 {[%emt 0:00:06]} (10... Nxe4 $1 $15 11. Bxe7 Nxc3 12. Bxd8 Nxd1 13. Rfxd1 Rxd8) 11. Nxe4 $11 {[%emt 0:00:01]} Bb7 {[%emt 0:00:01]} 12. Qe2 {[%emt 0:00:07] [#] The position is equal.} Nxe4 $146 {[%emt 0:00:05]} (12... c5 $11) ({Predecessor:} 12... c5 13. Rad1 Nxe4 14. Bxe7 Qxe7 15. Bxe4 Bxe4 16. Qxe4 cxd4 17. Rxd4 Nc5 18. Qe2 Rfd8 {½-½ (44) Cardenas,F (1916)-Escobar Figueroa,S (1842) Barcelona 2012}) 13. Qxe4 $14 {[%emt 0:00:11][%csl Gd3][%cal Re4h7]} ({Don't play} 13. Bxe7 Qxe7 14. Bxe4 (14. Qxe4 Nf6 $11) 14... Nf6 $11) 13... g6 {[%emt 0:00:20]} 14. Bxe7 {[%emt 0:00:13] White is more active.} Qxe7 {[%emt 0:00:02]} 15. Rad1 {[%emt 0:00:17]} Rad8 {[%emt 0:00:02]} 16. Rfe1 {[%emt 0:00:04]} Rfe8 {[%emt 0:00:17]} 17. h4 {[%emt 0:00:03]} Nf6 {[%emt 0:00:15]} 18. Qf4 {[%emt 0:00:01]} Kg7 {[%emt 0:00:05]} 19. Bb1 {[%emt 0:00:19]} Qd6 {[%emt 0:00:11]} (19... c5 $11) 20. Ne5 $16 {[%emt 0:00:05] Re3 is the strong threat.} c5 {[%emt 0:00:05] [#]} 21. h5 {[%emt 0:00:17]} (21. Bxg6 $1 $16 fxg6 22. Qg3) 21... g5 $11 {[%emt 0:00:08]} 22. Qd2 {[%emt 0:00:20]} (22. Qh2 $11 {and White has nothing to worry.}) 22... Qxd4 $19 {[%emt 0:00:13]} ({Worse is} 22... cxd4 23. Qd3 Qc7 24. f3 $15) 23. Qc2 {[%emt 0:00:13]} Qh4 {[%emt 0:00:02]} 24. Nxf7 $2 {[%emt 0:00:09] [#]} (24. Qc3 $17 {might work better.}) 24... Be4 $2 {[%emt 0:00:20]} (24... Kxf7 {is a self mate.} 25. Qg6+ Kf8 26. Qxf6+ Kg8 27. Qg6+ Kf8 28. Qxh6+ Kf7 29. Bg6+ Kf6 30. Bh7+ Kf7 31. Qg6+ Kf8 32. Qf6#) (24... Rxd1 $1 $19 {[%cal Rd1e1] has better winning chances.} 25. Qg6+ Kf8 26. Qxh6+ Ke7 27. Rxd1 Bxg2 28. Kxg2 Qg4+ 29. Kh2 Qxd1) 25. Rxe4 $17 {[%emt 0:00:11]} Rxd1+ {[%emt 0:00:12]} ({Better is} 25... Qxe4 $17 26. Nxd8 {[#]} Rxd8 $1) 26. Qxd1 $11 {[%emt 0:00:02]} Nxe4 {[%emt 0:00:02]} 27. Bxe4 {[%emt 0:00:13] The board is on fire.} Qxe4 $17 {[%emt 0:00:11][%mdl 4096] Endgame KQR-KQN} 28. Qd7 $36 {[%emt 0:00:07][%csl LRa7,LRe8,LRg5][%mdl 2048] Nd6+ would kill now. White has the initiative.} Kf8 $2 {[%emt 0:00:13][%mdl 8192]} (28... Kf6 $11 29. Qxe8 Qe1+ 30. Kh2 Qxf2) 29. Nd6 $18 {[%emt 0:00:09][%csl Gd6][%cal Rd7f7]} Qe1+ {[%emt 0:00:02]} 30. Kh2 {[%emt 0:00:00][%csl Gd6][%cal Rd7f7]} Qxf2 {[%emt 0:00:33]} 31. Qxe8+ {[%emt 0:00:03] White mates.} Kg7 {[%emt 0:00:01]} 32. Qe7+ {[%emt 0:00:07]} Kg8 {[%emt 0:00:06]} 33. Qxe6+ {[%emt 0:00:03]} Kh8 {[%emt 0:00:07]} 34. Qxh6+ {[%emt 0:00:02]} Kg8 {[%emt 0:00:00]} 35. Qxg5+ {[%emt 0:00:03]} Kh8 {[%emt 0:00:01]} 36. Qh6+ {[%emt 0:00:01]} Kg8 {[%emt 0:00:01]} 37. Qg6+ {[%emt 0:00:01] Weighted Error Value: White=0.39/Black=0.62} 1-0